[Event "*** SCC Grand Prix: Titled Tuesday Blitz"]
[Site "Chess.com"]
[Date "2020.06.02"]
[Round "9"]
[White "LittlePeasant"]
[Black "MarcoRiehle"]
[Result "1-0"]
[WhiteElo "2801"]
[BlackElo "2638"]
[TimeControl "180+1"]
[EndTime "11:46:45 PDT"]
[Termination "LittlePeasant won by resignation"]

1. Nf3 {[%clk 0:03:00.9]} 1... Nf6 {[%clk 0:02:58.5]} 2. c4 {[%clk 0:02:59.3]}
2... c5 {[%clk 0:02:58.3]} 3. g3 {[%clk 0:02:59.5]} 3... d5 {[%clk 0:02:57.8]}
4. cxd5 {[%clk 0:02:59.6]} 4... Nxd5 {[%clk 0:02:58.7]} 5. Nc3 {[%clk
0:03:00.3]} 5... Nc7 {[%clk 0:02:55.2]} 6. d4 {[%clk 0:02:57]} 6... Nc6 {[%clk
0:02:52.7]} 7. d5 {[%clk 0:02:53.3]} 7... Nb4 {[%clk 0:02:50.4]} 8. e4 {[%clk
0:02:53.4]} 8... e6 {[%clk 0:02:50.1]} 9. a3 {[%clk 0:02:51.2]} 9... Nba6 {[%clk
0:02:49.7]} 10. Bg2 {[%clk 0:02:43.6]} 10... exd5 {[%clk 0:02:49.4]} 11. exd5
{[%clk 0:02:43.6]} 11... Bd6 {[%clk 0:02:49.1]} 12. O-O {[%clk 0:02:41.5]} 12...
O-O {[%clk 0:02:48.7]} 13. Ne4 {[%clk 0:02:41.7]} 13... Ne8 {[%clk 0:02:38]} 14.
Bg5 {[%clk 0:02:33.7]} 14... Qb6 {[%clk 0:02:25.3]} 15. Re1 {[%clk 0:02:27.2]}
15... Nac7 {[%clk 0:02:16.6]} 16. Rc1 {[%clk 0:02:12]} 16... Bg4 {[%clk
0:02:08.9]} 17. Qd2 {[%clk 0:02:02.2]} 17... f6 {[%clk 0:01:56.4]} 18. Be3
{[%clk 0:01:57.7]} 18... Qb3 {[%clk 0:01:41.9]} 19. Nxc5 {[%clk 0:01:30.6]}
19... Qxd5 {[%clk 0:01:34.7]} 20. Nd4 {[%clk 0:01:28.9]} 20... Qf7 {[%clk
0:01:27.2]} 21. Nxb7 {[%clk 0:01:24.3]} 21... Be5 {[%clk 0:01:14.2]} 22. Nc6
{[%clk 0:01:24.1]} 22... Rc8 {[%clk 0:01:07.6]} 23. Nxa7 {[%clk 0:01:11.1]}
23... Rb8 {[%clk 0:01:06.6]} 24. Nc6 {[%clk 0:01:11.6]} 24... Rc8 {[%clk
0:00:56.1]} 25. a4 {[%clk 0:01:06.2]} 25... Kh8 {[%clk 0:00:42]} 26. a5 {[%clk
0:01:03.2]} 26... Na6 {[%clk 0:00:41.7]} 27. b4 {[%clk 0:00:52.2]} 27... Qxb7
{[%clk 0:00:39.5]} 28. Nxe5 {[%clk 0:00:49.2]} 28... Qxg2+ {[%clk 0:00:19.3]}
29. Kxg2 {[%clk 0:00:46.7]} 29... Rxc1 {[%clk 0:00:19.5]} 30. Qxc1 {[%clk
0:00:34.8]} 30... fxe5 {[%clk 0:00:18.8]} 31. b5 {[%clk 0:00:34.6]} 31... Nb4
{[%clk 0:00:18.9]} 32. Qc5 {[%clk 0:00:32.2]} 32... Bf3+ {[%clk 0:00:18.8]} 33.
Kg1 {[%clk 0:00:32.2]} 33... Rf6 {[%clk 0:00:18.4]} 34. Qxb4 {[%clk 0:00:31.3]}
34... h5 {[%clk 0:00:17.6]} 35. h4 {[%clk 0:00:30.7]} 35... e4 {[%clk
0:00:16.8]} 36. Qe7 {[%clk 0:00:28.5]} 1-0

[Event "*** SCC Grand Prix: Titled Tuesday Blitz"]
[Site "Chess.com"]
[Date "2020.06.02"]
[Round "9"]
[White "Bigfish1995"]
[Black "SantoBlue"]
[Result "1-0"]
[WhiteElo "3001"]
[BlackElo "2796"]
[TimeControl "180+1"]
[EndTime "11:46:47 PDT"]
[Termination "Bigfish1995 won by checkmate"]

1. e4 {[%clk 0:02:24.6]} 1... d6 {[%clk 0:02:59.9]} 2. d4 {[%clk 0:02:22.1]}
2... Nf6 {[%clk 0:02:58.6]} 3. Nc3 {[%clk 0:02:22.3]} 3... e5 {[%clk 0:02:57.9]}
4. Nf3 {[%clk 0:02:21.7]} 4... Nbd7 {[%clk 0:02:57.5]} 5. Rg1 {[%clk 0:02:21.9]}
5... c6 {[%clk 0:02:49.5]} 6. g4 {[%clk 0:02:17]} 6... exd4 {[%clk 0:02:07]} 7.
Nxd4 {[%clk 0:02:15.5]} 7... Nc5 {[%clk 0:02:03.2]} 8. f3 {[%clk 0:01:58.8]}
8... g6 {[%clk 0:01:55.5]} 9. Be3 {[%clk 0:01:58]} 9... Bg7 {[%clk 0:01:55.5]}
10. Qd2 {[%clk 0:01:57.4]} 10... O-O {[%clk 0:01:50.4]} 11. O-O-O {[%clk
0:01:30.8]} 11... Qa5 {[%clk 0:01:29.1]} 12. Kb1 {[%clk 0:01:22.8]} 12... Ne6
{[%clk 0:01:11.9]} 13. Nf5 {[%clk 0:01:20.6]} 13... gxf5 {[%clk 0:01:04.9]} 14.
gxf5 {[%clk 0:01:19.3]} 14... Kh8 {[%clk 0:00:59.2]} 15. fxe6 {[%clk 0:01:19.5]}
15... Bxe6 {[%clk 0:00:53.4]} 16. Rxg7 {[%clk 0:01:19.1]} 16... Kxg7 {[%clk
0:00:53.4]} 17. Bd4 {[%clk 0:00:58.3]} 17... Qh5 {[%clk 0:00:17.7]} 18. Qf4
{[%clk 0:00:57.7]} 18... Qg6 {[%clk 0:00:15.2]} 19. Bd3 {[%clk 0:00:56.1]} 19...
Rg8 {[%clk 0:00:09.7]} 20. Rg1 {[%clk 0:00:53.8]} 20... Kf8 {[%clk 0:00:08.5]}
21. Rxg6 {[%clk 0:00:51.8]} 21... Rxg6 {[%clk 0:00:09.4]} 22. Qxd6+ {[%clk
0:00:49.4]} 22... Kg8 {[%clk 0:00:08.6]} 23. Qf4 {[%clk 0:00:48.4]} 23... Rd8
{[%clk 0:00:07.2]} 24. Bxa7 {[%clk 0:00:47.4]} 24... Nd7 {[%clk 0:00:03.2]} 25.
Bf2 {[%clk 0:00:44.5]} 25... Nf6 {[%clk 0:00:02.3]} 26. b3 {[%clk 0:00:43.8]}
26... Nh5 {[%clk 0:00:01.5]} 27. Qh4 {[%clk 0:00:42.9]} 27... Rxd3 {[%clk
0:00:01.5]} 28. cxd3 {[%clk 0:00:41.9]} 28... Bxb3 {[%clk 0:00:02.4]} 29. axb3
{[%clk 0:00:41.2]} 29... Rg1+ {[%clk 0:00:03.3]} 30. Bxg1 {[%clk 0:00:41]} 30...
Ng3 {[%clk 0:00:04.2]} 31. hxg3 {[%clk 0:00:39.8]} 31... Kh8 {[%clk 0:00:04.7]}
32. Qf6+ {[%clk 0:00:38.5]} 32... Kg8 {[%clk 0:00:05]} 33. Bd4 {[%clk
0:00:39.2]} 33... h6 {[%clk 0:00:05.9]} 34. Qg7# {[%clk 0:00:39.2]} 1-0

[Event "*** SCC Grand Prix: Titled Tuesday Blitz"]
[Site "Chess.com"]
[Date "2020.06.02"]
[Round "9"]
[White "TengisChess"]
[Black "atwalcb"]
[Result "1-0"]
[WhiteElo "2497"]
[BlackElo "2371"]
[TimeControl "180+1"]
[EndTime "11:46:47 PDT"]
[Termination "TengisChess won by resignation"]

1. Nf3 {[%clk 0:02:57.3]} 1... d5 {[%clk 0:02:56.1]} 2. Nc3 {[%clk 0:02:58.2]}
2... Nf6 {[%clk 0:02:48.1]} 3. d4 {[%clk 0:02:58.2]} 3... Bf5 {[%clk 0:02:39]}
4. h3 {[%clk 0:02:58.4]} 4... c6 {[%clk 0:02:31.8]} 5. g4 {[%clk 0:02:58.3]}
5... Bg6 {[%clk 0:02:29.1]} 6. Bf4 {[%clk 0:02:56.6]} 6... Nbd7 {[%clk
0:02:26.6]} 7. e3 {[%clk 0:02:56.7]} 7... Ne4 {[%clk 0:02:18.4]} 8. Nxe4 {[%clk
0:02:53.1]} 8... Bxe4 {[%clk 0:02:19.3]} 9. Bg2 {[%clk 0:02:52.7]} 9... e6
{[%clk 0:02:17.7]} 10. O-O {[%clk 0:02:51.9]} 10... Be7 {[%clk 0:02:13.1]} 11.
c3 {[%clk 0:02:49.6]} 11... h5 {[%clk 0:02:11]} 12. Ne5 {[%clk 0:02:47.8]} 12...
Nxe5 {[%clk 0:01:59.7]} 13. Bxe5 {[%clk 0:02:41.9]} 13... Bxg2 {[%clk
0:01:31.4]} 14. Kxg2 {[%clk 0:02:38.9]} 14... f6 {[%clk 0:01:31.1]} 15. Bg3
{[%clk 0:02:34.5]} 15... Bd6 {[%clk 0:00:51.3]} 16. gxh5 {[%clk 0:02:20.9]}
16... Bxg3 {[%clk 0:00:43.5]} 17. fxg3 {[%clk 0:02:21.8]} 17... Qe7 {[%clk
0:00:38.6]} 18. g4 {[%clk 0:02:16.1]} 18... O-O-O {[%clk 0:00:35]} 19. Qf3
{[%clk 0:02:12.3]} 19... e5 {[%clk 0:00:33]} 20. Rae1 {[%clk 0:02:06.4]} 20...
e4 {[%clk 0:00:29.8]} 21. Qf5+ {[%clk 0:02:04.9]} 21... Qd7 {[%clk 0:00:29.3]}
22. b3 {[%clk 0:01:53.9]} 22... Qxf5 {[%clk 0:00:23]} 23. Rxf5 {[%clk
0:01:54.8]} 23... Kd7 {[%clk 0:00:20.9]} 24. Kg3 {[%clk 0:01:55]} 24... Ke6
{[%clk 0:00:20.5]} 25. c4 {[%clk 0:01:54.1]} 25... Rd7 {[%clk 0:00:19.1]} 26.
Rc1 {[%clk 0:01:51.8]} 26... Rc8 {[%clk 0:00:16.4]} 27. cxd5+ {[%clk 0:01:50.9]}
27... Rxd5 {[%clk 0:00:16.5]} 28. Rxd5 {[%clk 0:01:49.7]} 28... Kxd5 {[%clk
0:00:16.9]} 29. Rc5+ {[%clk 0:01:50]} 29... Kd6 {[%clk 0:00:16.6]} 30. Kf4
{[%clk 0:01:50.9]} 30... Re8 {[%clk 0:00:16.6]} 31. Rf5 {[%clk 0:01:50.3]} 31...
b6 {[%clk 0:00:15.6]} 32. h6 {[%clk 0:01:48.8]} 32... g5+ {[%clk 0:00:11.5]} 33.
Kg3 {[%clk 0:01:49]} 33... Ke6 {[%clk 0:00:11.4]} 34. h4 {[%clk 0:01:47.9]}
34... Rh8 {[%clk 0:00:09.1]} 35. hxg5 {[%clk 0:01:47.8]} 35... fxg5 {[%clk
0:00:09.3]} 36. Rxg5 {[%clk 0:01:47.8]} 36... Rxh6 {[%clk 0:00:09.8]} 37. Re5+
{[%clk 0:01:48.7]} 37... Kd6 {[%clk 0:00:09.3]} 38. Rxe4 {[%clk 0:01:49.6]}
38... Rh1 {[%clk 0:00:08.4]} 39. Rf4 {[%clk 0:01:49.4]} 39... Re1 {[%clk
0:00:08.4]} 40. Rf3 {[%clk 0:01:48]} 40... Re2 {[%clk 0:00:08.2]} 41. Kf4 {[%clk
0:01:48.3]} 41... Rxa2 {[%clk 0:00:07.4]} 42. g5 {[%clk 0:01:48.5]} 42... Ke6
{[%clk 0:00:07.1]} 43. Rg3 {[%clk 0:01:48.1]} 43... Rf2+ {[%clk 0:00:06.9]} 44.
Ke4 {[%clk 0:01:48]} 44... a5 {[%clk 0:00:06]} 45. g6 {[%clk 0:01:48]} 45... Rf8
{[%clk 0:00:05.7]} 46. g7 {[%clk 0:01:47.3]} 46... Rg8 {[%clk 0:00:06.2]} 47.
Rg6+ {[%clk 0:01:47.5]} 47... Kf7 {[%clk 0:00:06.2]} 48. Rxc6 {[%clk 0:01:47.6]}
48... Kxg7 {[%clk 0:00:05.6]} 49. Rxb6 {[%clk 0:01:47.4]} 49... Rc8 {[%clk
0:00:05.3]} 50. Kd3 {[%clk 0:01:47.4]} 50... Kf7 {[%clk 0:00:04.6]} 51. d5
{[%clk 0:01:46.7]} 51... Ke7 {[%clk 0:00:04.8]} 52. Kd4 {[%clk 0:01:46.7]} 52...
Kd7 {[%clk 0:00:04.9]} 53. e4 {[%clk 0:01:47.1]} 53... Rc1 {[%clk 0:00:05]} 54.
Ra6 {[%clk 0:01:44.4]} 54... Rb1 {[%clk 0:00:05.3]} 55. Rxa5 {[%clk 0:01:43.8]}
55... Rxb3 {[%clk 0:00:05.9]} 56. Ra7+ {[%clk 0:01:43.8]} 56... Kd8 {[%clk
0:00:04.7]} 57. Ke5 {[%clk 0:01:43.7]} 57... Rb6 {[%clk 0:00:04.3]} 58. d6
{[%clk 0:01:44]} 58... Rb4 {[%clk 0:00:04.7]} 59. Kd5 {[%clk 0:01:43.9]} 59...
Rb5+ {[%clk 0:00:05.2]} 60. Ke6 {[%clk 0:01:44]} 60... Rb8 {[%clk 0:00:04.8]}
61. Rh7 {[%clk 0:01:43.8]} 61... Kc8 {[%clk 0:00:04]} 62. Rh8+ {[%clk
0:01:43.7]} 1-0

[Event "*** SCC Grand Prix: Titled Tuesday Blitz"]
[Site "Chess.com"]
[Date "2020.06.02"]
[Round "9"]
[White "Mikasinski"]
[Black "OrtizMarcos"]
[Result "1-0"]
[WhiteElo "2465"]
[BlackElo "2328"]
[TimeControl "180+1"]
[EndTime "11:46:47 PDT"]
[Termination "Mikasinski won by checkmate"]

1. e4 {[%clk 0:03:00.9]} 1... c6 {[%clk 0:02:58.6]} 2. d4 {[%clk 0:03:00.6]}
2... d5 {[%clk 0:02:59.1]} 3. e5 {[%clk 0:03:01.1]} 3... c5 {[%clk 0:02:59]} 4.
dxc5 {[%clk 0:03:01]} 4... e6 {[%clk 0:02:59.2]} 5. Nf3 {[%clk 0:03:00.9]} 5...
Bxc5 {[%clk 0:02:58.5]} 6. Bd3 {[%clk 0:03:00.8]} 6... Ne7 {[%clk 0:02:58.2]} 7.
O-O {[%clk 0:03:00.9]} 7... Ng6 {[%clk 0:02:57.3]} 8. Nbd2 {[%clk 0:03:01]} 8...
O-O {[%clk 0:02:52.7]} 9. Nb3 {[%clk 0:03:00.9]} 9... Bb6 {[%clk 0:02:50.6]} 10.
Re1 {[%clk 0:03:01.1]} 10... Nc6 {[%clk 0:02:47.3]} 11. c3 {[%clk 0:02:49]}
11... Qc7 {[%clk 0:02:46.6]} 12. Be3 {[%clk 0:02:42.5]} 12... Bxe3 {[%clk
0:02:34.9]} 13. Rxe3 {[%clk 0:02:41.7]} 13... Ncxe5 {[%clk 0:02:35.4]} 14. Nxe5
{[%clk 0:02:41.3]} 14... Nxe5 {[%clk 0:02:35.1]} 15. Bxh7+ {[%clk 0:02:40.3]}
15... Kxh7 {[%clk 0:02:29.9]} 16. Qh5+ {[%clk 0:02:40.2]} 16... Kg8 {[%clk
0:02:30]} 17. Rxe5 {[%clk 0:02:24.2]} 17... f6 {[%clk 0:02:25.6]} 18. Re3 {[%clk
0:02:20.4]} 18... e5 {[%clk 0:02:15.9]} 19. Rd1 {[%clk 0:02:13.2]} 19... Be6
{[%clk 0:02:13.9]} 20. Rg3 {[%clk 0:01:32.4]} 20... b6 {[%clk 0:01:59.9]} 21. h4
{[%clk 0:01:27.2]} 21... Rfd8 {[%clk 0:01:37.9]} 22. Rdd3 {[%clk 0:01:25.4]}
22... Qf7 {[%clk 0:01:16.2]} 23. Rg6 {[%clk 0:00:59.5]} 23... Rd7 {[%clk
0:00:42.8]} 24. Rdg3 {[%clk 0:00:57.5]} 24... Qf8 {[%clk 0:00:40.1]} 25. Nd2
{[%clk 0:00:42.8]} 25... a5 {[%clk 0:00:19]} 26. Nf3 {[%clk 0:00:41.7]} 26...
Raa7 {[%clk 0:00:19.5]} 27. Nxe5 {[%clk 0:00:38.2]} 27... fxe5 {[%clk
0:00:16.9]} 28. Rxe6 {[%clk 0:00:37.4]} 28... Rf7 {[%clk 0:00:09.9]} 29. Qxe5
{[%clk 0:00:24.2]} 29... Qc5 {[%clk 0:00:09.8]} 30. Re8+ {[%clk 0:00:22.3]}
30... Kh7 {[%clk 0:00:10]} 31. Qh5# {[%clk 0:00:21.2]} 1-0

[Event "*** SCC Grand Prix: Titled Tuesday Blitz"]
[Site "Chess.com"]
[Date "2020.06.02"]
[Round "9"]
[White "Oglob71"]
[Black "Boninknights"]
[Result "1-0"]
[WhiteElo "2515"]
[BlackElo "2391"]
[TimeControl "180+1"]
[EndTime "11:46:48 PDT"]
[Termination "Oglob71 won by resignation"]

1. d4 {[%clk 0:03:00.9]} 1... Nf6 {[%clk 0:02:58.8]} 2. Nf3 {[%clk 0:03:00.9]}
2... d6 {[%clk 0:02:57.9]} 3. c4 {[%clk 0:03:00.2]} 3... g6 {[%clk 0:02:57.5]}
4. Nc3 {[%clk 0:03:00.4]} 4... Bg7 {[%clk 0:02:57.3]} 5. Bg5 {[%clk 0:03:01]}
5... O-O {[%clk 0:02:56]} 6. e3 {[%clk 0:03:01]} 6... c5 {[%clk 0:02:54.1]} 7.
d5 {[%clk 0:02:56.9]} 7... h6 {[%clk 0:02:49.3]} 8. Bh4 {[%clk 0:02:56.6]} 8...
Bg4 {[%clk 0:02:41.6]} 9. Be2 {[%clk 0:02:53.2]} 9... Bxf3 {[%clk 0:02:38.8]}
10. Bxf3 {[%clk 0:02:53.1]} 10... Nbd7 {[%clk 0:02:38.2]} 11. O-O {[%clk
0:02:52.3]} 11... a6 {[%clk 0:02:35.5]} 12. a4 {[%clk 0:02:51.7]} 12... Qa5
{[%clk 0:02:31.4]} 13. Ra3 {[%clk 0:02:49.9]} 13... Rfe8 {[%clk 0:02:29.9]} 14.
Bg3 {[%clk 0:02:48.5]} 14... Rab8 {[%clk 0:02:27.6]} 15. h3 {[%clk 0:02:47.1]}
15... Ne5 {[%clk 0:02:20.5]} 16. Bxe5 {[%clk 0:02:45.1]} 16... dxe5 {[%clk
0:02:19.1]} 17. Qc2 {[%clk 0:02:42.7]} 17... e6 {[%clk 0:02:13.5]} 18. Rd1
{[%clk 0:02:41.3]} 18... exd5 {[%clk 0:02:03]} 19. Nxd5 {[%clk 0:02:41.2]} 19...
Nxd5 {[%clk 0:01:54.1]} 20. Bxd5 {[%clk 0:02:41.2]} 20... Kf8 {[%clk 0:01:51.8]}
21. h4 {[%clk 0:02:32.8]} 21... Rbd8 {[%clk 0:01:36.8]} 22. h5 {[%clk
0:02:31.8]} 22... e4 {[%clk 0:01:29.7]} 23. hxg6 {[%clk 0:02:26.5]} 23... fxg6
{[%clk 0:01:27.4]} 24. Raa1 {[%clk 0:02:08.7]} 24... Qb4 {[%clk 0:01:22.8]} 25.
Rab1 {[%clk 0:02:08.2]} 25... b5 {[%clk 0:01:16.6]} 26. axb5 {[%clk 0:02:00.8]}
26... axb5 {[%clk 0:01:15.1]} 27. cxb5 {[%clk 0:01:55.1]} 27... Qxb5 {[%clk
0:01:00.7]} 28. Bxe4 {[%clk 0:01:47.5]} 28... Rxd1+ {[%clk 0:00:54]} 29. Rxd1
{[%clk 0:01:47.3]} 29... Qxb2 {[%clk 0:00:48.5]} 30. Qxc5+ {[%clk 0:01:45.3]}
30... Kg8 {[%clk 0:00:47.9]} 31. Bxg6 {[%clk 0:01:42.5]} 31... Rf8 {[%clk
0:00:46.7]} 32. Rf1 {[%clk 0:01:26.6]} 32... Qf6 {[%clk 0:00:40.7]} 33. Bb1
{[%clk 0:01:23.5]} 33... Qe5 {[%clk 0:00:32.7]} 34. Qc4+ {[%clk 0:01:22.9]}
34... Kh8 {[%clk 0:00:30.7]} 35. Qd3 {[%clk 0:01:22.8]} 35... Kg8 {[%clk
0:00:29.8]} 36. g3 {[%clk 0:01:17.4]} 36... Rf3 {[%clk 0:00:24.6]} 37. Kg2
{[%clk 0:01:15.1]} 37... Rf6 {[%clk 0:00:22.2]} 38. Qc4+ {[%clk 0:01:12.2]}
38... Kf8 {[%clk 0:00:20.3]} 39. Rd1 {[%clk 0:01:04.7]} 39... Ke7 {[%clk
0:00:18.4]} 40. Qb4+ {[%clk 0:01:00.5]} 40... Kf7 {[%clk 0:00:17.8]} 41. Qb3+
{[%clk 0:00:50.9]} 41... Kf8 {[%clk 0:00:16.5]} 1-0

[Event "*** SCC Grand Prix: Titled Tuesday Blitz"]
[Site "Chess.com"]
[Date "2020.06.02"]
[Round "9"]
[White "Quiet_Desperation"]
[Black "kot60"]
[Result "0-1"]
[WhiteElo "2110"]
[BlackElo "2444"]
[TimeControl "180+1"]
[EndTime "11:46:49 PDT"]
[Termination "kot60 won by resignation"]

1. e4 {[%clk 0:02:38.2]} 1... e5 {[%clk 0:02:56.8]} 2. Nf3 {[%clk 0:02:35.6]}
2... Nc6 {[%clk 0:02:50.3]} 3. Bc4 {[%clk 0:02:35.4]} 3... Be7 {[%clk
0:02:49.8]} 4. d4 {[%clk 0:02:34.6]} 4... d6 {[%clk 0:02:49.3]} 5. c3 {[%clk
0:02:33.6]} 5... Nf6 {[%clk 0:02:48.5]} 6. Nbd2 {[%clk 0:02:27.4]} 6... O-O
{[%clk 0:02:47.5]} 7. h3 {[%clk 0:02:27.2]} 7... Nxe4 {[%clk 0:02:45]} 8. Bxf7+
{[%clk 0:02:18.8]} 8... Rxf7 {[%clk 0:02:43.3]} 9. Nxe4 {[%clk 0:02:19.3]} 9...
d5 {[%clk 0:02:32.6]} 10. Neg5 {[%clk 0:02:11.4]} 10... Bxg5 {[%clk 0:02:32]}
11. Nxg5 {[%clk 0:02:11.5]} 11... Rf8 {[%clk 0:02:30.4]} 12. dxe5 {[%clk
0:02:06.7]} 12... Nxe5 {[%clk 0:02:22.6]} 13. f4 {[%clk 0:02:00.1]} 13... Ng6
{[%clk 0:01:47.4]} 14. O-O {[%clk 0:01:57.5]} 14... h6 {[%clk 0:01:45.3]} 15.
Nf3 {[%clk 0:01:40.5]} 15... Nxf4 {[%clk 0:01:41.9]} 16. Nd4 {[%clk 0:01:36.2]}
16... Ne6 {[%clk 0:01:23.5]} 17. Be3 {[%clk 0:01:25]} 17... Rxf1+ {[%clk
0:01:18.1]} 18. Qxf1 {[%clk 0:01:24.8]} 18... Qf8 {[%clk 0:01:13.1]} 19. Qd3
{[%clk 0:01:14.2]} 19... c6 {[%clk 0:01:01.8]} 20. Rf1 {[%clk 0:01:12.9]} 20...
Qe8 {[%clk 0:00:58.6]} 21. Nf5 {[%clk 0:01:08.5]} 21... Nf8 {[%clk 0:00:41.1]}
22. Nxg7 {[%clk 0:00:34.7]} 22... Kxg7 {[%clk 0:00:40.3]} 23. Bd4+ {[%clk
0:00:34.3]} 23... Kg8 {[%clk 0:00:39.1]} 24. Rxf8+ {[%clk 0:00:14.8]} 24... Kxf8
{[%clk 0:00:36]} 25. Qh7 {[%clk 0:00:14.6]} 25... Qf7 {[%clk 0:00:32.8]} 26.
Qxh6+ {[%clk 0:00:11.8]} 26... Ke8 {[%clk 0:00:31.8]} 27. Qd6 {[%clk 0:00:08.5]}
27... Be6 {[%clk 0:00:27.2]} 28. h4 {[%clk 0:00:04.3]} 28... Rd8 {[%clk
0:00:25.7]} 29. Qe5 {[%clk 0:00:05.2]} 29... Qf5 {[%clk 0:00:23.9]} 30. Qg7
{[%clk 0:00:02.9]} 30... Bf7 {[%clk 0:00:20.6]} 31. h5 {[%clk 0:00:02.7]} 0-1

[Event "*** SCC Grand Prix: Titled Tuesday Blitz"]
[Site "Chess.com"]
[Date "2020.06.02"]
[Round "9"]
[White "Borsuk_Konstantin"]
[Black "frankshar"]
[Result "1-0"]
[WhiteElo "2556"]
[BlackElo "2380"]
[TimeControl "180+1"]
[EndTime "11:46:50 PDT"]
[Termination "Borsuk_Konstantin won by resignation"]

1. d4 {[%clk 0:03:00.9]} 1... Nf6 {[%clk 0:02:50.7]} 2. c4 {[%clk 0:03:01]} 2...
e6 {[%clk 0:02:50.1]} 3. Nc3 {[%clk 0:03:01.5]} 3... Bb4 {[%clk 0:02:49.9]} 4.
Qc2 {[%clk 0:03:02.1]} 4... Nc6 {[%clk 0:02:49.2]} 5. e3 {[%clk 0:02:57.2]} 5...
e5 {[%clk 0:02:39.6]} 6. d5 {[%clk 0:02:53.8]} 6... Ne7 {[%clk 0:02:39]} 7. a3
{[%clk 0:02:50.5]} 7... Bxc3+ {[%clk 0:02:38.5]} 8. Qxc3 {[%clk 0:02:51.2]} 8...
d6 {[%clk 0:02:37.4]} 9. f3 {[%clk 0:02:47.8]} 9... e4 {[%clk 0:02:27.9]} 10. b3
{[%clk 0:02:25.3]} 10... O-O {[%clk 0:02:14.9]} 11. Bb2 {[%clk 0:02:21.7]} 11...
c6 {[%clk 0:02:15.2]} 12. fxe4 {[%clk 0:02:11.6]} 12... Ng6 {[%clk 0:02:12.9]}
13. Nf3 {[%clk 0:02:09.6]} 13... Re8 {[%clk 0:02:06.4]} 14. Bd3 {[%clk
0:02:07.8]} 14... Ne5 {[%clk 0:01:50.2]} 15. Bc2 {[%clk 0:01:52.6]} 15... Bg4
{[%clk 0:01:44.5]} 16. O-O {[%clk 0:01:41.5]} 16... Nfd7 {[%clk 0:01:38]} 17.
Nd4 {[%clk 0:01:32.7]} 17... c5 {[%clk 0:01:15.7]} 18. Nf5 {[%clk 0:01:31.2]}
18... Bxf5 {[%clk 0:01:14.7]} 19. Rxf5 {[%clk 0:01:31]} 19... f6 {[%clk
0:01:12.2]} 20. Raf1 {[%clk 0:01:29.8]} 20... Qe7 {[%clk 0:00:38.1]} 21. Bc1
{[%clk 0:01:27]} 21... Rab8 {[%clk 0:00:31.9]} 22. Bd2 {[%clk 0:01:24.5]} 22...
b5 {[%clk 0:00:30.4]} 23. h3 {[%clk 0:01:12.4]} 23... bxc4 {[%clk 0:00:23.6]}
24. bxc4 {[%clk 0:01:07.8]} 24... Nb6 {[%clk 0:00:23.6]} 25. Bb3 {[%clk
0:01:07.1]} 25... Qb7 {[%clk 0:00:15.4]} 26. Ba2 {[%clk 0:00:51.2]} 26... Qa6
{[%clk 0:00:12.1]} 27. Be1 {[%clk 0:00:36.9]} 27... Nbxc4 {[%clk 0:00:11.9]} 28.
Bxc4 {[%clk 0:00:34.9]} 28... Qxc4 {[%clk 0:00:11.7]} 29. Rxe5 {[%clk
0:00:33.5]} 29... Qxf1+ {[%clk 0:00:06.5]} 30. Kxf1 {[%clk 0:00:32.1]} 30...
Rxe5 {[%clk 0:00:07.4]} 31. Bg3 {[%clk 0:00:30.5]} 31... Rxe4 {[%clk 0:00:05.9]}
32. Bxd6 {[%clk 0:00:31]} 32... Rb1+ {[%clk 0:00:04.9]} 33. Kf2 {[%clk
0:00:30.4]} 1-0

[Event "*** SCC Grand Prix: Titled Tuesday Blitz"]
[Site "Chess.com"]
[Date "2020.06.02"]
[Round "9"]
[White "Sanan_Sjugirov"]
[Black "VladimirBelous"]
[Result "0-1"]
[WhiteElo "2893"]
[BlackElo "2769"]
[TimeControl "180+1"]
[EndTime "11:46:55 PDT"]
[Termination "VladimirBelous won by resignation"]

1. e4 {[%clk 0:03:00.9]} 1... c5 {[%clk 0:03:00]} 2. Nf3 {[%clk 0:03:00.6]} 2...
Nc6 {[%clk 0:02:59]} 3. Bb5 {[%clk 0:03:00.1]} 3... d6 {[%clk 0:02:59.5]} 4. O-O
{[%clk 0:02:53.3]} 4... Bd7 {[%clk 0:02:59]} 5. Re1 {[%clk 0:02:52.6]} 5... g6
{[%clk 0:02:57.2]} 6. c3 {[%clk 0:02:38.9]} 6... a6 {[%clk 0:02:57.6]} 7. Bc4
{[%clk 0:02:31.8]} 7... b5 {[%clk 0:02:33.2]} 8. Bd5 {[%clk 0:02:28.4]} 8... Bg7
{[%clk 0:02:30]} 9. d4 {[%clk 0:02:22.6]} 9... cxd4 {[%clk 0:02:29.6]} 10. cxd4
{[%clk 0:02:23.5]} 10... e6 {[%clk 0:02:25]} 11. Bxc6 {[%clk 0:02:15.5]} 11...
Bxc6 {[%clk 0:02:25.2]} 12. d5 {[%clk 0:02:15.6]} 12... Bd7 {[%clk 0:02:25.4]}
13. e5 {[%clk 0:02:04.3]} 13... dxe5 {[%clk 0:01:58.8]} 14. Nxe5 {[%clk
0:01:58.5]} 14... Ne7 {[%clk 0:01:41.2]} 15. Nxd7 {[%clk 0:01:44.2]} 15... Qxd7
{[%clk 0:01:42.1]} 16. dxe6 {[%clk 0:01:44.4]} 16... Qxd1 {[%clk 0:01:42.7]} 17.
exf7+ {[%clk 0:01:43.5]} 17... Kxf7 {[%clk 0:01:43.6]} 18. Rxd1 {[%clk
0:01:43.9]} 18... Rhd8 {[%clk 0:01:44.1]} 19. Rf1 {[%clk 0:01:28.3]} 19... Rac8
{[%clk 0:01:41.6]} 20. Nd2 {[%clk 0:01:08.9]} 20... Rxc1 {[%clk 0:01:38.8]} 21.
Raxc1 {[%clk 0:01:05.3]} 21... Rxd2 {[%clk 0:01:39.1]} 22. b3 {[%clk 0:00:54.2]}
22... Rxa2 {[%clk 0:01:37.6]} 23. Rc7 {[%clk 0:00:54.1]} 23... Bd4 {[%clk
0:01:32.3]} 24. Rd7 {[%clk 0:00:42.2]} 24... Rd2 {[%clk 0:01:29.4]} 25. Kh1
{[%clk 0:00:35]} 25... Rxf2 {[%clk 0:01:23.3]} 26. Re1 {[%clk 0:00:18.4]} 26...
Bf6 {[%clk 0:01:21.7]} 27. Ra7 {[%clk 0:00:17.4]} 27... b4 {[%clk 0:01:13.8]}
28. Rxa6 {[%clk 0:00:16.6]} 28... Bc3 {[%clk 0:01:13.8]} 29. Rb1 {[%clk
0:00:15.3]} 29... h5 {[%clk 0:00:57.6]} 30. h3 {[%clk 0:00:12.1]} 30... Nf5
{[%clk 0:00:57.6]} 31. Ra7+ {[%clk 0:00:11.1]} 31... Ke6 {[%clk 0:00:57.1]} 32.
Ra6+ {[%clk 0:00:11.3]} 32... Kf7 {[%clk 0:00:57.6]} 33. Ra7+ {[%clk 0:00:11.5]}
33... Kf6 {[%clk 0:00:58.1]} 34. Ra6+ {[%clk 0:00:12]} 34... Kg5 {[%clk
0:00:58.3]} 35. Rd1 {[%clk 0:00:09.7]} 35... Rb2 {[%clk 0:00:48.4]} 36. Kh2
{[%clk 0:00:07.4]} 36... Rxb3 {[%clk 0:00:45.5]} 37. Rd5 {[%clk 0:00:07]} 37...
Rb2 {[%clk 0:00:45.1]} 38. h4+ {[%clk 0:00:06.3]} 38... Kh6 {[%clk 0:00:36]} 39.
Rxg6+ {[%clk 0:00:07.2]} 39... Kxg6 {[%clk 0:00:36]} 0-1